Cogmind - Beta 15 @@@ ROGUE MODE // 2025.06.19 @ 17:06:58 Player: the Result: Destroyed by Y-54 Guardian with Gatling Laser Performance ------------- Evolutions (3) 1500 Regions Visited (5) 1000 Robots Destroyed (121) 605 Value Destroyed (4053) 4053 Prototype IDs (14) 280 Alien Tech Used (0) 0 Bonus (483) 483 TOTAL SCORE: 7921 Bonus ------- High Alert Combat Kills 448 Follower Combat Kills 35 Cogmind --------- Core Integrity 0/700 Matter 275/300 Energy 466/490 System Corruption 17% Temperature Cool (18) Movement Treading (320) Ox2 Location -7/Storage Parts ------- > --- POWER (2) -------- Improved Deuterium Engine Enhanced Nuclear Core > --- PROPULSION (3) --- Medium Treads Medium Treads > --- UTILITY (5) ------ Improved Heat Sink Improved Cooling System Huge Storage Unit Structural Scanner > --- WEAPON (3) ------- Cooled Pulse Rifle Plasma Cannon Cooled Particle Cannon > --- INVENTORY (25) --- Cooled Deuterium Engine Cold Fusion Reactor Advanced Treads Armored Wheel Armored Wheel Improved Heat Sink High-capacity Storage Unit Precision Matter Filter Hardened Heavy Armor Plating Improved Field Recycling Unit (0) Heavy Gatling Laser Heavy Gatling Laser PD Laser Heavy Missile Launcher Chainsword Peak State ------------ > --- POWER ------------ Nuclear Core Cold Fusion Reactor > --- PROPULSION ------- Improved Heavy Treads Armored Wheel > --- UTILITY ---------- Improved Cooling System Improved Cooling System High-capacity Storage Unit Armor Integrity Analyzer Precision Matter Filter > --- WEAPON ----------- Improved Heavy Machine Gun Improved Heavy Machine Gun Improved Heavy Machine Gun > --- INVENTORY -------- Deuterium Engine Deuterium Engine Cold Fusion Reactor Improved Cooling System Improved Cooling System Improved Cooling System High-capacity Storage Unit Structural Scanner Seismic Detector Precision Matter Filter Gatling Laser Heavy Gatling Laser Heavy Gatling Laser PD Laser Improved EM Pulse Cannon Improved Heavy Machine Gun Heavy Rocket Launcher Chainsword [Rating: 72] Favorites ----------- Power Nuclear Core Engine Ion Engine Power Core Nuclear Core Reactor Cold Fusion Reactor Propulsion Wheel Treads Improved Heavy Treads Leg Aluminum Leg Wheel Wheel Flight Unit Biomechanical Wings Utility Improved Cooling System Device Improved Cooling System Storage High-capacity Storage Unit Processor Armor Integrity Analyzer Protection Improved Light Armor Plating Weapon Medium Laser Energy Gun Medium Laser Energy Cannon Plasma Cannon Ballistic Gun Improved Heavy Machine Gun Launcher Improved Grenade Launcher Special Weapon Mining Laser Slashing Weapon Chainsword Build | -11 -10 -10 -8 -7 -7 ------- Run | Yrd Mat Sub Mat Fac Sto Slots Evolved 6 | . . . 4 2 . Power 1 | . . . 1 . . Propulsion 1 | . . . . 1 . Utility 3 | . . . 2 1 . Weapon 1 | . . . 1 . . Parts Attached 111 | 8 12 1 19 57 14 Power 18 | 1 . . 5 10 2 Engine 7 | 1 . . 1 4 1 Core 9 | . . . 4 4 1 Reactor 2 | . . . . 2 . Propulsion 21 | 4 2 . 2 10 3 Treads 4 | . . . . 1 3 Leg 2 | 2 . . . . . Wheel 14 | 2 2 . 2 8 . Hover . | . . . . . . Flight 1 | . . . . 1 . Utility 38 | 2 5 1 7 20 3 Device 20 | 1 3 . 2 12 2 Storage 5 | 1 2 . 1 1 . Processor 2 | . . . . 2 . Hackware . | . . . . . . Protection 11 | . . 1 4 5 1 Artifact . | . . . . . . Weapon 34 | 1 5 . 5 17 6 Energy Gun 14 | 1 3 . 4 4 2 Energy Cannon 9 | . . . . 6 3 Ballistic Gun 5 | . . . . 5 . Ballistic Cannon . | . . . . . . Launcher 3 | . 1 . 1 . 1 Special Weapon 2 | . 1 . . 1 . Impact Weapon . | . . . . . . Slashing Weapon 1 | . . . . 1 . Piercing Weapon . | . . . . . . Special Melee Weapon . | . . . . . . Unidentified Prototypes 12 | . . . 1 8 3 Parts Lost 27 | . . . . 14 13 Power 3 | . . . . 2 1 Propulsion 8 | . . . . 6 2 Utility 9 | . . . . 4 5 Weapon 7 | . . . . 2 5 Highest Loss Streak 5 | . . . . 4 5 To Critical Strikes 1 | . . . . . 1 Average Backups 17 | 4 13 15 17 18 20 Power 3 | . 1 2 3 3 2 Propulsion 1 | 1 1 2 2 . 3 Utility 6 | . 2 5 7 8 6 Weapon 6 | 1 6 6 5 6 7 Tool/Special . | . . . . . . Unused Backups 27 | 1 3 . 4 9 10 Power 4 | . . . 2 . 2 Propulsion 4 | 1 . . . 1 2 Utility 8 | . . . 1 3 4 Weapon 11 | . 3 . 1 5 2 Tool/Special . | . . . . . . Average Slot Usage (%) 95 | . 97 100 99 95 89 Engine 6 | . 13 14 5 3 10 Core 6 | . . . 12 8 1 Reactor 1 | . . . . 2 3 Treads 1 | . . . . . 7 Wheel 17 | . 22 28 17 18 7 Device 19 | . 13 . 19 23 21 Storage 8 | . 14 14 9 7 7 Processor 1 | . . . . 2 4 Protection 3 | . . 14 7 3 2 Energy Gun 15 | . 22 28 24 11 4 Energy Cannon 4 | . . . . 5 17 Ballistic Gun 1 | . . . . 4 . Special Weapon 1 | . 3 . 1 . . Peak Build Rating 72 | 6 8 8 33 72 66 Average Rating 34 | 4 7 8 22 47 58 On Entrance 18 | . 6 8 8 30 57 Naked Turns . | . . . . . . Heaviest Build 172 | 13 30 32 73 172 135 Greatest Support 103 | 26 20 20 20 75 103 Greatest Overweight (x) 6 | 1 6 1 3 6 3 Average Overweight (x) 1 | . . 1 2 1 2 Largest Inventory Capacity 25 | 8 15 15 20 25 25 Average Capacity 18 | 7 13 15 18 20 25 Most Carried 25 | 8 15 15 20 25 25 Average Carried 18 | 4 13 15 17 19 24 Final Capacity 25 | 8 15 15 20 25 25 Final Carried 25 | 8 15 15 20 25 18 Class Distribution -------------------- 31% | Tank 29% | Mutant 24% | Skirmisher 14% | Gunner Dominant Class ---------------- Mutant | -10/Materials Mutant | -10/Subcaves Skirmisher | -8/Materials Tank | -7/Factory Gunner | -7/Storage Resources | -11 -10 -10 -8 -7 -7 ----------- Run | Yrd Mat Sub Mat Fac Sto Matter Collected 2704 | 280 320 . 547 1263 294 Remotely . | . . . . . . Salvage Created 4387 | 174 161 . 578 2117 1357 Parts 225 | 12 33 . 32 94 54 Haulers Intercepted 5 | . 1 . 3 1 . Recyclers Shooed 2 | 1 . . . . 1 Parts Field Recycled . | . . . . . . Retrieved Matter . | . . . . . . Parts Self-Destructed . | . . . . . . Prevented . | . . . . . . Kills | -11 -10 -10 -8 -7 -7 ------- Run | Yrd Mat Sub Mat Fac Sto Combat Hostiles Destroyed 94 | . 9 . 17 39 29 Guns 40 | . 1 . 7 24 8 Cannons 28 | . . . . 9 19 AOE 19 | . 8 . 10 1 . Classes Destroyed 16 | 2 4 . 2 7 1 Worker 2 | . . . . 1 1 Builder 7 | . 4 . . 2 1 Tunneler 4 | 4 . . . . . Hauler 5 | . 1 . 3 1 . Recycler 5 | 1 . . 1 2 1 Watcher 4 | . 2 . . 1 1 Swarmer 30 | . 9 . 11 2 8 Grunt 25 | . . . . 13 12 Brawler 3 | . . . . . 3 Duelist 4 | . . . . 3 1 Protector 2 | . . . . 1 1 Sentry 13 | . . . 5 5 3 Specialist 5 | . . . . 5 . Hunter 5 | . . . 1 4 . Programmer 6 | . . . . 5 1 Heavy 1 | . . . . 1 . Best Kill Streak 14 | 5 11 . 4 7 14 Combat Bots Only 14 | . 6 . 4 7 14 Max Kills in Single Turn 4 | 1 3 . 4 2 2 Gunslinging . | . . . . . . Exploded 4 | . 3 . 4 1 . Melee . | . . . . . . Uniques/NPCs Destroyed . | . . . . . . Combat | -11 -10 -10 -8 -7 -7 -------- Run | Yrd Mat Sub Mat Fac Sto Hostile Shots Fired 784 | . 15 . 39 408 322 Missed 231 | . 2 . 11 122 96 Hits 553 | . 13 . 28 286 226 Melee 17 | . . . . 3 14 Projectile 536 | . 13 . 28 283 212 AOE 1 | . . . . 1 . Critical Strikes 16 | . . . 2 7 7 Actively Blocked 2 | . . . . 2 . Damage Taken 6911 | . 102 . 395 3636 2778 Core 839 | . 21 . 109 441 268 Absorbed by Shields 309 | . . . . 309 . Reduced by Siege Mode 76 | . . . . . 76 Redirected to Shielding 193 | . . . 61 132 . Regen/Repaired (Parts) 147 | . 40 . 30 77 . Core Remaining (%) 90 | 100 . 91 80 . . Volleys Fired 283 | 13 35 . 46 107 82 Largest 3 | 1 2 . 3 3 3 Hottest 240 | 50 100 . 171 240 240 Shots Fired 670 | 13 43 . 96 313 205 Gun 386 | 13 25 . 76 225 47 Cannon 246 | . . . . 88 158 Launcher 10 | . 5 . 5 . . Special 28 | . 13 . 15 . . Kinetic 92 | . . . . 92 . Thermal 568 | 13 38 . 91 221 205 Explosive 10 | . 5 . 5 . . Electromagnetic . | . . . . . . Robot Hit Streak 37 | 4 3 . 10 22 37 Robot Miss Streak 5 | 1 5 . 3 4 4 Penetration Max . | . . . . . . Secondary Targets 5 | . . . . 5 . Max Gunslinging Chain 1 | . . . . 1 . Shots Hit Robots 413 | 9 8 . 48 206 142 Core Hits 280 | 6 24 . 34 96 120 Critical Kills 5 | . . . . 3 2 Critical Parts Destroyed . | . . . . . . Critical Strikes 18 | 3 . . 4 9 2 Burn 13 | 3 . . 4 6 . Meltdown 5 | . . . . 3 2 Melee Attacks 12 | . . . . 12 . Impact . | . . . . . . Slashing 12 | . . . . 12 . Piercing . | . . . . . . Sneak Attacks . | . . . . . . Combat Hostiles . | . . . . . . Follow-up Attacks . | . . . . . . Damage Inflicted 11579 | 123 756 . 1214 5179 4307 Guns 5614 | 123 98 . 681 3449 1263 Cannons 4420 | . . . . 1376 3044 Explosions 1545 | . 658 . 533 354 . Melee . | . . . . . . Ramming . | . . . . . . Kinetic 1367 | . . . . 1367 . Thermal 8894 | 123 325 . 681 3458 4307 Explosive 1318 | . 431 . 533 354 . Electromagnetic . | . . . . . . Impact . | . . . . . . Slashing . | . . . . . . Piercing . | . . . . . . Highest Corruption 17 | . . . . 8 17 Average Corruption 4 | . . . . 2 10 Corruption Purged . | . . . . . . Corruption Blocked . | . . . . . . Effects 50 | . . . . 19 31 Message Errors 13 | . . . . 6 7 Matter Fused 10 | . . . . 5 5 Heat Flow Errors 5 | . . . . 1 4 Energy Discharges 4 | . . . . 1 3 Parts Rejected 2 | . . . . . 2 Data Loss (minor) 4 | . . . . 1 3 Data Loss (major) 2 | . . . . 2 . Misfires 2 | . . . . 2 . Alerts 1 | . . . . . 1 Misdirections 1 | . . . . . 1 Weapon Failures 6 | . . . . 1 5 Overload Shots . | . . . . . . Overflow Damage 76 | . 48 . 16 11 1 Projectiles 1 | . . . . . 1 Explosions 75 | . 48 . 16 11 . Melee . | . . . . . . Knockbacks . | . . . . . . Impact . | . . . . . . Kinetic . | . . . . . . Secondary . | . . . . . . Self-Inflicted Damage 110 | . . . 25 85 . Shots 2 | . . . 1 1 . Rammed . | . . . . . . Targets Rammed . | . . . . . . Kicked . | . . . . . . Crushed . | . . . . . . Highest Temperature 521 | 150 120 . 286 225 521 Average Temperature 63 | 81 32 . 99 33 76 Received Heat Transfer 1462 | . . . 81 691 690 Effects 4 | . . . 1 . 3 Interference 4 | . . . 1 . 3 Siege Activations 1 | . . . . . 1 Total Turns 98 | . . . . . 98 Longest Duration 98 | . . . . . 98 Martial Activations . | . . . . . . Shielding Activations . | . . . . . . Robots Disrupted . | . . . . . . Combat Hostiles . | . . . . . . Robots Corrupted . | . . . . . . Combat Hostiles . | . . . . . . Parts Fried . | . . . . . . Impact Corruptions . | . . . . . . Robots Melted 7 | . . . . 5 2 Combat Hostiles 7 | . . . . 5 2 Parts Melted 44 | 1 . . 6 24 13 Heat Transferred 15263 | 592 434 . 2109 6379 5749 Parts Sabotaged . | . . . . . . Parts Stolen . | . . . . . . Parts Stripped . | . . . . . . Power Chain Reactions . | . . . . . . Alert | -11 -10 -10 -8 -7 -7 ------- Run | Yrd Mat Sub Mat Fac Sto Maximum Alert Level 3 | . . . 1 2 3 Low Security (%) 66 | 100 100 . 94 61 . Level 1 12 | . . . 5 12 36 Level 2 17 | . . . . 25 43 Level 3 3 | . . . . . 20 Level 4 . | . . . . . . Level 5 . | . . . . . . High Security . | . . . . . . Max Security . | . . . . . . Peak Influence 749 | 20 198 . 232 626 749 Initial 283 | . . . . 97 283 Average 201 | 3 98 . 55 220 502 Influence Increases 3045 | 25 344 . 591 1240 845 Destroy 0b10 Robot/C 1860 | . 180 . 340 760 580 Destroy 0b10 Robot/NC 145 | 25 35 . 20 40 25 Destroy Leader 408 | . 36 . 96 174 102 Allied During Kill 7 | . . . . . 7 Successful Hack 127 | . 8 . 27 92 . Disable Machine 210 | . 30 . 30 105 45 Destroy Structure 183 | . 40 . 63 54 26 Partial Spotted 15 | . . . . . 15 Lose Combat Pursuer 90 | . 15 . 15 15 45 Influence Decreases 2421 | 25 344 . 377 831 844 Entered New Map 457 | . . . . 117 340 Time Decay 1439 | 25 262 . 244 574 334 Lost Part 270 | . . . . 140 130 Lost Ally 50 | . . . 10 . 40 Purge Threat 205 | . 82 . 123 . . Squads Dispatched 21 | . 2 . 2 10 7 Investigation 4 | . 1 . . 2 1 Extermination 4 | . . . . 2 2 Reinforcement 4 | . 1 . . 2 1 Assault 4 | . . . . 1 3 Garrison 5 | . . . 2 3 . Intercept . | . . . . . . Searches Triggered . | . . . . . . Construction Impeded . | . . . . . . Haulers Reinforced . | . . . . . . Active Scanning Responses . | . . . . . . Cargo Convoy Interrupts 1 | . . . . 1 . Stealth | -11 -10 -10 -8 -7 -7 --------- Run | Yrd Mat Sub Mat Fac Sto Distress Signals 7 | . 1 . 2 1 3 Communications Jammed . | . . . . . . Distress Signals . | . . . . . . Times Spotted 131 | . 13 . 21 50 47 Peak Tracking Total 12 | . 4 . 4 10 12 Tactical Retreats 6 | . 1 . 1 1 3 Traps | -11 -10 -10 -8 -7 -7 ------- Run | Yrd Mat Sub Mat Fac Sto Traps Triggered 14 | . 6 . . 8 . Indirectly . | . . . . . . Trap Hack Attempts . | . . . . . . Triggered . | . . . . . . Disarmed 1 | . . . 1 . . Reprogrammed . | . . . . . . Reused . | . . . . . . Traps Extracted . | . . . . . . Installed . | . . . . . . Triggered . | . . . . . . Machines | -11 -10 -10 -8 -7 -7 ---------- Run | Yrd Mat Sub Mat Fac Sto Machines Disabled 14 | . 2 . 2 7 3 Max in Single Turn 2 | . 2 . 1 2 1 Machines Repaired . | . . . . . . Machines Dismantled . | . . . . . . Machines Sabotaged . | . . . . . . Overloaded Fab Kills . | . . . . . . Hacking | -11 -10 -10 -8 -7 -7 --------- Run | Yrd Mat Sub Mat Fac Sto Machines Accessed 27 | . 7 . 12 7 1 Terminals 19 | . 6 . 9 3 1 Fabricators 1 | . . . . 1 . Repair Stations 3 | . 1 . 1 1 . Recycling Units . | . . . . . . Scanalyzers 4 | . . . 2 2 . Garrison Access . | . . . . . . Total Hacks 96 | . 26 . 50 18 2 Successful 57 | . 11 . 35 11 . Failed 39 | . 15 . 15 7 2 Catastrophic 3 | . . . 1 1 1 Database Lockouts . | . . . . . . Manual 30 | . 11 . 14 3 2 Terminals 61 | . 24 . 29 6 2 Fabricators 1 | . . . . 1 . Repair Stations 6 | . 2 . 2 2 . Recycling Units . | . . . . . . Scanalyzers 28 | . . . 19 9 . Garrison Access . | . . . . . . Terminal Hacks 20 | . 7 . 12 1 . Part Schematic 1 | . . . . 1 . Robot Schematic 1 | . 1 . . . . Robot Analysis 1 | . . . 1 . . Prototype ID Bank 1 | . . . 1 . . Branch Access Points 1 | . . . 1 . . Alert Level 2 | . . . 2 . . Unreport Threat 3 | . 1 . 2 . . Locate Traps 3 | . 1 . 2 . . Disarm Traps 1 | . . . 1 . . Hauler Manifests 2 | . 1 . 1 . . Registered Components 1 | . 1 . . . . Zone Layout 3 | . 2 . 1 . . Fabricator Hacks . | . . . . . . Repair Station Hacks 6 | . 2 . 2 2 . Scan Component 3 | . 1 . 1 1 . Repair 3 | . 1 . 1 1 . Recycling Unit Hacks . | . . . . . . Scanalyzer 25 | . . . 18 7 . Insert Component 11 | . . . 9 2 . Analyze 14 | . . . 9 5 . Garrison Access Hacks . | . . . . . . Unauthorized Hacks 6 | . 2 . 3 1 . Terminals 6 | . 2 . 3 1 . Assimilate 1 | . . . 1 . . Botnet 5 | . 2 . 2 1 . Fabricators . | . . . . . . Repair Stations . | . . . . . . Recycling Units . | . . . . . . Scanalyzers . | . . . . . . Garrison Access . | . . . . . . Data Cores Recovered . | . . . . . . Used . | . . . . . . Hacking Detections 26 | . 7 . 11 7 1 Full Trace Events 3 | . . . . 2 1 Feedback Events . | . . . . . . Feedback Blocked . | . . . . . . Robot Schematics Acquired 1 | . 1 . . . . Robots Built . | . . . . . . Authchips . | . . . . . . Time . | . . . . . . Total Robot Build Rating . | . . . . . . Part Schematics Acquired 12 | . . . 9 3 . Parts Built . | . . . . . . Authchips . | . . . . . . Time . | . . . . . . Total Part Build Rating . | . . . . . . Parts Repaired 3 | . 1 . 1 1 . Time 64 | . 26 . 26 12 . Parts Recycled . | . . . . . . Recycled Matter . | . . . . . . Retrieved Matter . | . . . . . . Retrieved Components . | . . . . . . Parts Scanalyzed 11 | . . . 9 2 . Part Schematics Acquired 11 | . . . 9 2 . Parts Damaged . | . . . . . . Bothacking | -11 -10 -10 -8 -7 -7 ------------ Run | Yrd Mat Sub Mat Fac Sto Used RIF Installer . | . . . . . . Robots Hacked . | . . . . . . Non-combat . | . . . . . . Combat . | . . . . . . Robot Hacks Applied . | . . . . . . Relay Couplers Released . | . . . . . . Fabnet Peak Effective % . | . . . . . . Robots Rewired . | . . . . . . Allies Hacked . | . . . . . . Hacks Repelled . | . . . . . . Allies | -11 -10 -10 -8 -7 -7 -------- Run | Yrd Mat Sub Mat Fac Sto Total Allies 3 | . . . 1 . 2 Largest Group 2 | . . . 1 . 2 Highest-Rated Group 62 | . . . 10 . 62 Highest-Rated Ally 31 | . . . 10 . 31 Total Orders . | . . . . . . Ally Attacks 9 | . . . . . 9 Total Damage 149 | . . . . . 149 Kills 1 | . . . . . 1 Allies Corrupted . | . . . . . . Allies Melted . | . . . . . . Intel | -11 -10 -10 -8 -7 -7 ------- Run | Yrd Mat Sub Mat Fac Sto Active Infowar (turns) 2806 | 36 710 . 745 858 457 Structural 1781 | . . . 554 807 420 Seismic 2715 | 36 710 . 726 841 402 Robot Analysis Total 1 | . . . 1 . . Derelict Logs Recovered 1 | . . 1 . . . Drone Launches . | . . . . . . Drone Recoveries . | . . . . . . Exploration | -11 -10 -10 -8 -7 -7 ------------- Run | Yrd Mat Sub Mat Fac Sto Turns Passed 4543 | 125 767 99 1060 1745 747 Spaces Moved 2442 | 77 587 103 615 865 195 Core 2 | 1 1 . . . . Treads 116 | . . . . 43 73 Legs 71 | 15 56 . . . . Wheels 2253 | 61 530 103 615 822 122 Hover . | . . . . . . Flight . | . . . . . . Fastest Speed 50 | 50 95 95 95 105 140 Average Speed 117 | 94 97 95 113 125 177 Slowest Speed 350 | 120 350 95 125 240 240 Overloaded Moves . | . . . . . . Propulsion Burnouts . | . . . . . . Robots Hopped . | . . . . . . Potential Cave-ins . | . . . . . . Cave-ins Triggered . | . . . . . . Exploration Rate (%) 38 | 3 99 7 58 24 39 Regions Visited 5 Branch Regions 2 Pre-discovered Areas 1 | . . 1 . . . Known Exits Taken . | . . . . . . Unknown Exits Taken 5 | 1 1 1 1 1 . Scrap Searched . | . . . . . . Spaces Dug 84 | . 9 . 55 12 8 Terrain Destroyed 193 | . 41 . 75 51 26 Melee 12 | . . . . 12 . Projectile 53 | . 12 . 15 . 26 AOE 128 | . 29 . 60 39 . Terrain Rammed . | . . . . . . Walls Destroyed . | . . . . . . Machines Disabled . | . . . . . . Actions | -11 -10 -10 -8 -7 -7 --------- Run | Yrd Mat Sub Mat Fac Sto Total 3492 | 115 703 103 865 1279 427 Wait 334 | . 27 . 124 86 97 Move 2437 | 76 586 102 614 864 195 Hop . | . . . . . . Pick Up 97 | 13 15 . 15 43 11 Fast Attach 39 | 6 9 . 1 19 4 Attach 39 | . 2 . 4 20 13 Detach 6 | . . . . 5 1 Swap 149 | 2 18 1 45 67 16 Drop 93 | 5 11 . 16 53 8 Fire 283 | 13 35 . 46 107 82 Melee 12 | . . . . 12 . Ram . | . . . . . . Kick . | . . . . . . Crush . | . . . . . . Escape Stasis 3 | . . . . 3 . Rewire . | . . . . . . Trap . | . . . . . . Miscellaneous . | . . . . . . Route ------- -11/Scrapyard -10/Materials (discovered 6 exits: [*Mat x3] / [*Min x2] / [*Sub]) -10/Subcaves -8/Materials (discovered 2 exits: *Fac x2) -7/Factory (discovered 3 exits: *Fac x2 / *Sto) -7/Storage History --------- Turn | Location | Event 8 | -11/Scrapyard | Discovered new exit (range 15) 126 | -11/Scrapyard | Entered Materials 277 | -10/Materials | Discovered new exit (range 14) 338 | -10/Materials | Build established: Mutant 507 | -10/Materials | Discovered new exit (range 8) 572 | -10/Materials | Discovered new exit (range 16) 649 | -10/Materials | Repaired Med. Laser 675 | -10/Materials | Discovered new exit (range 13) 806 | -10/Materials | Discovered new exit (range 15) 886 | -10/Materials | Discovered new exit (range 6) 893 | -10/Materials | Entered Subcaves 925 | -10/Subcaves | Learned location of Recycling (-7) 956 | -10/Subcaves | Discovered new exit (range 7) 992 | -10/Subcaves | Entered Materials 992 | -8/Materials | Evolved 4 slots: Power x1, Utility x2, Weapon x1 1215 | -8/Materials | Repaired Wheel 1517 | -8/Materials | Discovered new exit (range 13) 1944 | -8/Materials | Garrison activated, responded to threat 2000 | -8/Materials | Discovered new exit (range 11) 2052 | -8/Materials | Entered Factory 2052 | -7/Factory | Evolved 2 slots: Propulsion x1, Utility x1 2084 | -7/Factory | Build established: Skirmisher 2374 | -7/Factory | Repaired Imp. Power Shielding 2666 | -7/Factory | Garrison activated, responded to threat 2788 | -7/Factory | Discovered new exit (range 15) 2821 | -7/Factory | Identified exit to Factory 3004 | -7/Factory | Destroyed 7 combat bots 3058 | -7/Factory | Discovered exit to Factory (range 7) 3147 | -7/Factory | Cargo convoy interrupted 3258 | -7/Factory | Lost 3 parts (1n1u1w) 3432 | -7/Factory | Build established: Tank 3579 | -7/Factory | Core integrity fell below 50% 3652 | -7/Factory | First assault squad dispatched 3739 | -7/Factory | Lost 4 parts (1p2n1u) 3747 | -7/Factory | Discovered new exit (range 7) 3797 | -7/Factory | Entered Storage 3820 | -7/Storage | Build established: Gunner 4152 | -7/Storage | Met a pair of Derelict thieves 4197 | -7/Storage | First assault squad dispatched 4283 | -7/Storage | Core integrity fell below 20% 4298 | -7/Storage | System corruption reached 10% 4370 | -7/Storage | Lost 5 parts (3u2w) 4389 | -7/Storage | Destroyed 14 combat bots 4544 | -7/Storage | Destroyed by Y-54 Guardian with Gatling Laser Last Messages --------------- 04527_ System corrupted: Heat flow error (+280). 04528_ P-60 Hacker resets K-01 Serf, system corruption cleaned. 04529_ System corrupted: Plasma Cannon failed to cycle. 04529_ K-01 Serf collects debris. 04532_ Plasma Cannon destroyed. 04532_ K-01 Serf collects debris. 04533_ M-28 Smith repairs K-01 Serf. 04536_ Imp. Spread Laser destroyed. 04537_ K-01 Serf cleans the Terminal. 04538_ Imp. Heavy Treads destroyed. 04538_ Med. Treads destroyed. 04542_ Chain reaction triggered in Lgt. Deuterium Engine. 04542_ U-05 Engineer destroyed. 04542_ K-01 Serf collects debris. 04543_ R-06 Scavenger collects Sml. Matter Pod. 04544_ M-28 Smith repairs Y-54 Guardian. 04544_ Imp. Cooling System destroyed. Map ----- +----------------------------------------------------+ | ?????????????????????????????????????????????????? | | ?????????????????????????????????????????????????? | | ?????????????????????????????????????????????????? | | ?????????????????????????????????????????????????? | | ?????????????????????????????????????????????????? | | ?????????????????????????????????????????????????? | | ?????????????????????????????????????????????????? | | ?????????????????????????????????????????????##### | | ?????????????????????????????????????????????##### | | ?????????????????????????????????????????????## | | ?????????????????????????????????????????????## " | | ?????????????????????????????????????????????## " | | ?????????????????????????????????????????????## " | | ????????????????????????????????????########### | | ????????????????????????????????????########### | | ???????????????????????#######??????##= ! ###%][ | | ???????????????????????#######??????## ==%!=##! | | ???????????????????????## ##??????##==[ ### | | ???????????????????????## #####???## = [###### | | ???????????????????????## #####???####"%"#### | | ???????????????????????## """##???###T%%% ### | | ???????????????????????## T"##???####% ### | | ???????????????????????## """#########/###### " | | ???????????????????????## *######### % ## # " | | ???????????????????????## =%! p = ####%" | | ???????????????????????##@ Y != * r % / | | ???????????????????????## Ym k w i ####%% | | ???????????????????????####; ;""T""## #### % | | ???????????????????????##### ;"""""### ######## | | ??????????????????????????## ######### %#### | | ??????????????????????????## # # #### | | ??????????????????????????## # ????? # #### | | ??????????????????????????## #"????? # #### """ | | ??????????????????????????## #"????? +^^^#### "[! | | ??????????????????????????## #"????? # #### "!* | | ?????????????????????????? #"????? # + """ | | ?????????????????????????? #"????? # #### | | ??????????????????????????## # ????? + ######## | | ??????????????????????????## ##?????###+######### | | ??????????????????????????## ##?????# ##?????? | | ??????????????????????????## ##???????? ????????? | | ??????????????????????????## ???????????????????? | | ???????????????????????????? ???????????????????? | | ???????????????????????????? ???????????????????? | | ?????????????????????????????????????????????????? | | ?????????????????????????????????????????????????? | | ?????????????????????????????????????????????????? | | ?????????????????????????????????????????????????? | | ?????????????????????????????????????????????????? | | ?????????????????????????????????????????????????? | +----------------------------------------------------+ Best States ------------- Heat Dissipation 115 Energy Generation 30 Energy Capacity 490 Matter Stores 300 Matter Capacity 300 Sight Range 16 Terrain Scan Density 10 Armor Coverage 450 Power Shielding 66 Weapon Shielding 66 Evasion (%) 55 Armor Integrity Analysis 30 Recoil Reduction 3 Matter Filtering 50 Item Schematics ----------------- Lrg. Storage Unit | -8/Materials | Scanalyzed Arm. Wheel | -8/Materials | Scanalyzed Recoil Stabilizer | -8/Materials | Scanalyzed Nuclear Core | -8/Materials | Scanalyzed Com. Battery | -8/Materials | Scanalyzed Imp. Power Shielding | -8/Materials | Scanalyzed Hrd. Medium Armor Plating | -8/Materials | Scanalyzed Med. Laser | -8/Materials | Scanalyzed Imp. Grenade Launcher | -8/Materials | Scanalyzed Imp. Cooling System | -7/Factory | Scanalyzed Arm. Huge Wheel | -7/Factory | Scanalyzed Lyr. Heavy Armor Plating | -7/Factory | Hacked Robot Schematics ------------------ G-34 Mercenary | -10/Materials | Hacked Fabricated ------------ Nothing Repaired ---------- Med. Laser | 42% | -10/Materials Wheel | 25% | -8/Materials Imp. Power Shielding | 23% | -7/Factory Alien Tech Used ----------------- None Achievements -------------- None Challenges ------------ None Game ------ Seed PartitionTerrorShovel Manual? 0 Play Time 01:12:50 Cumulative 163.5 hours Start 2025.06.19 @ 15:55:00 End 2025.06.19 @ 17:06:58 Sessions 1 Manual Loads 0 Difficulty Rogue Special Mode None Game No. 116 Rogue 116 Adventurer 0 Explorer 0 Win Type - Total 1 Types 1/0/0/0/0/0/0/0/0/0 Lore% 59 Gallery% 54 Achievement% 48 Wizard Run 0 Options --------- Layout 1 ASCII 0 Keyboard 0 Movement Mouse Keybinds 0 Fullscreen 1 Font 24/Smallcaps Map View 50x35 Zoom Use 0% Tactical HUD 1 Map Filters NONE Filters NONE Steam 1 RUN: 3250786a-56da-48a5-9377-28ebeb48523f